bitfinex-derivatives/quotes_SOLF0:USTF0_20220106
["timestamp","ask_amount","ask_price","bid_price","bid_amount"]
[1641487744631,34.36279,149.97,149.94,29.54867866]
[1641487744929,34.36279,149.97,149.87,6.97489201]
[1641487745630,6.698,149.97,149.87,13.63756108]
[1641487745832,27.66479,149.99,149.9,6.6613376]
[1641487746030,27.66479,149.99,149.9,12.4553376]
[1641487746631,27.66479,149.99,149.9,16.4553376]
[1641487747132,31.66479,149.99,149.9,12.4553376]
[1641487747332,31.66479,149.99,149.9,5.794]
[1641487747531,31.66479,149.99,149.88,6.9735281]
[1641487747931,31.66479,149.99,149.87,6.66289103]
[1641487748131,31.66479,149.99,149.87,10.66289103]
[1641487748333,27.66479,149.99,149.87,6.66289103]
[1641487748732,27.66479,149.99,149.87,25.12812501]
[1641487748933,27.66479,149.99,149.9,4.0]
[1641487749134,66.1831,150.01,149.9,10.156]
[1641487749932,27.66479,150.02,149.92,4.0]
[1641487750132,67.473,150.04,149.94,27.66479]
[1641487750332,71.473,150.04,149.94,32.08679]
[1641487750532,67.473,150.04,149.94,32.08679]
[1641487751132,67.473,150.04,149.91,6.66111574]
[1641487751334,4.0,150.03,149.89,82.26263398]
[1641487751533,4.0,150.01,149.89,63.7974]
[1641487751733,4.0,150.01,149.88,69.48764712]
[1641487752132,27.66479,149.99,149.88,97.15243712]
[1641487752333,64.8285,149.98,149.88,97.15243712]
[1641487752533,64.8285,149.98,149.89,7.0278957]
[1641487753638,64.8285,149.98,149.89,11.0278957]
[1641487754037,27.66479,149.99,149.89,11.0278957]
[1641487754237,27.66479,149.99,149.89,22.46465991]
[1641487754437,27.66479,149.99,149.89,18.46465991]
[1641487756541,27.66479,149.99,149.89,12.9378957]
[1641487759544,27.66479,149.99,149.89,24.37463958]
[1641487761255,27.66479,149.99,149.89,28.37463958]
[1641487761448,21.03852959,149.99,149.89,28.37463958]
[1641487761648,21.03852959,149.99,149.9,4.0]
[1641487761850,66.8365,150.02,149.89,28.37463958]
[1641487762049,66.8365,150.02,149.91,6.66089389]
[1641487762249,66.8365,150.02,149.94,27.66479]
[1641487762450,66.8365,150.02,149.94,32.20679]
[1641487763951,27.66479,150.05,149.95,4.0]
[1641487764154,27.66479,150.05,149.96,4.0]
[1641487764353,27.66479,150.06,149.97,6.65845457]
[1641487764553,27.66479,150.06,149.97,11.51445457]
[1641487765154,89.51739,150.06,149.97,11.51445457]
[1641487768359,61.8526,150.06,149.97,39.17924457]
[1641487768558,61.8526,150.06,149.97,32.52079]
[1641487769461,11.79797082,150.05,149.97,32.52079]
[1641487769860,11.79797082,150.05,149.97,36.52079]
[1641487770059,11.79797082,150.05,149.97,32.52079]
[1641487771061,61.8526,150.06,149.98,7.02655311]
[1641487772865,61.8526,150.06,149.97,27.66479]
[1641487773464,14.11688672,150.04,149.97,41.78167672]
[1641487774464,14.11688672,150.04,149.97,45.78167672]
[1641487774664,14.11688672,150.04,149.99,4.0]
[1641487774865,11.79595078,150.05,149.99,12.07434638]
[1641487775265,37.64518522,150.08,149.99,12.07434638]
[1641487775465,37.64518522,150.09,149.99,16.07434638]
[1641487776364,68.4022,150.1,150.03,27.66479]
[1641487776567,68.4022,150.1,150.03,34.70079]
[1641487778064,68.4022,150.1,150.03,27.66479]
[1641487778264,27.66479,150.09,150.03,27.66479]
[1641487778766,27.66479,150.09,149.99,6.65756799]
[1641487779469,11.79148646,150.08,149.99,6.65756799]
[1641487783470,11.79148646,150.08,150.0,1.45952227]
[1641487783771,15.03716626,150.08,150.0,1.45952227]
[1641487789876,4.0,150.07,150.0,1.45952227]
[1641487790075,4.852,150.07,150.0,1.45952227]
[1641487790976,3.2456798,150.06,150.0,1.45952227]
[1641487793379,15.03716626,150.08,150.0,1.45952227]
[1641487793580,6.948,150.06,150.0,1.45952227]
[1641487794283,3.2456798,150.05,150.0,1.45952227]
[1641487794984,11.79148646,150.08,150.0,1.45952227]
[1641487794985,15.03716626,150.08,150.0,1.45952227]
[1641487800193,15.03716626,150.08,150.0,8.54652227]
[1641487800996,27.66479,150.05,150.0,8.54652227]
[1641487801196,27.66479,150.05,150.01,1.45952227]
[1641487801695,15.03716626,150.08,150.01,1.45952227]
[1641487801896,3.2456798,150.04,150.0,1.45952227]
[1641487802700,15.03823038,150.08,150.0,1.45952227]
[1641487803497,15.03823038,150.08,150.02,4.70537469]
[1641487805199,14.11612869,150.05,150.02,4.70537469]
[1641487808500,14.11612869,150.05,150.02,11.36161325]
[1641487808701,14.11612869,150.05,150.02,4.70537469]
[1641487808904,14.11612869,150.07,150.03,4.70537469]
[1641487809102,14.11612869,150.07,150.03,37.26916469]
[1641487810105,3.2456798,150.08,150.05,4.70537469]
[1641487811306,3.2456798,150.08,150.06,4.70537469]
[1641487813806,3.2456798,150.08,150.05,4.70537469]
[1641487814606,3.2456798,150.08,150.04,1.45952227]
[1641487814607,17.36180849,150.08,150.04,6.16489696]
[1641487815607,14.11612869,150.09,150.06,4.70537469]
[1641487816509,14.11612869,150.09,150.05,4.70537469]
[1641487817207,41.78091869,150.09,150.05,4.70537469]
[1641487817407,14.11612869,150.08,150.05,4.70537469]
[1641487818211,17.36180849,150.08,150.04,4.70537469]
[1641487819012,4.70455383,150.05,150.04,4.70537469]
[1641487820014,4.70455383,150.05,150.02,1.45952227]
[1641487820817,4.70455383,150.05,150.03,4.0]
[1641487821016,4.70455383,150.05,150.03,8.488]
[1641487821417,4.70455383,150.07,150.03,22.60412869]
[1641487822116,4.70455383,150.07,150.03,45.25970273]
[1641487822316,4.70455383,150.07,150.04,4.0]
[1641487822517,37.64518522,150.13,150.04,1.45952227]
[1641487822717,4.70360958,150.08,150.05,4.0]
[1641487822919,2.30296721,150.08,150.06,63.209]
[1641487823121,2.30296721,150.08,150.04,15.57565096]
[1641487823319,2.30296721,150.08,150.07,55.32958]
[1641487823519,2.30296721,150.08,150.07,60.19958]
[1641487823719,37.64518522,150.15,150.07,60.19958]
[1641487823920,66.4576,150.17,150.07,60.19958]
[1641487823921,3.21696826,150.16,150.07,60.19958]
[1641487824821,66.4576,150.17,150.07,60.19958]
[1641487828823,66.4576,150.17,150.07,55.32958]
[1641487829926,4.0,150.15,150.07,55.32958]
[1641487831227,4.0,150.16,150.07,55.32958]
[1641487831429,4.0,150.15,150.07,55.32958]
[1641487832428,4.0,150.15,150.07,27.66479]
[1641487833129,66.4576,150.17,150.07,27.66479]
[1641487833331,66.4576,150.17,150.1,27.66479]
[1641487834130,66.4576,150.17,150.1,20.14109751]
[1641487835333,27.66479,150.2,150.1,47.80588751]
[1641487835631,94.59589,150.2,150.1,47.80588751]
[1641487836434,3.21582763,150.19,150.1,47.80588751]
[1641487836933,10.01782763,150.19,150.06,6.65424541]
[1641487837333,27.66479,150.15,150.07,27.66479]
[1641487837734,34.46479,150.15,150.07,27.66479]
[1641487838536,17.2124935,150.14,150.08,1.46017386]
[1641487841837,3.21582763,150.14,150.08,1.46017386]
[1641487842239,2.763e-05,150.14,150.13,6.65136852]
[1641487842541,37.64518522,150.18,150.13,6.65136852]
[1641487842744,14.10671402,150.16,150.13,6.65136852]
[1641487843544,14.10671402,150.16,150.15,27.66479]
[1641487843745,37.64518522,150.19,150.15,32.26379]
[1641487843945,39.43363932,150.23,150.15,32.26379]
[1641487844147,43.43363932,150.23,150.15,32.26379]
[1641487844645,43.43363932,150.23,150.15,4.599]
[1641487844845,4.0,150.22,150.13,34.31615852]
[1641487845045,4.0,150.22,150.13,27.66479]
[1641487845446,4.0,150.17,150.13,27.66479]
[1641487845649,10.853,150.17,150.11,6.6520322]
[1641487845845,6.853,150.17,150.11,6.6520322]
[1641487847046,4.0,150.2,150.11,6.6520322]
[1641487847247,4.0,150.2,150.1,7.03001531]
[1641487847646,27.66479,150.2,150.1,7.03001531]
[1641487847846,95.55789,150.2,150.1,7.03001531]
[1641487848448,95.55789,150.2,150.09,95.00589]
[1641487849150,4.0,150.17,150.1,6.65269601]
[1641487849352,4.653,150.17,150.1,6.65269601]
[1641487849549,32.31779,150.17,150.1,6.65269601]
[1641487851253,4.653,150.17,150.1,6.65269601]
[1641487851454,91.55789,150.2,150.1,6.65247472]
[1641487852453,91.55789,150.2,150.1,13.63776517]
[1641487853254,4.0,150.18,150.1,13.63776517]
[1641487853453,4.0,150.18,150.1,62.72097784]
[1641487854754,91.55789,150.2,150.1,62.72097784]
[1641487855654,4.0,150.18,150.1,62.72097784]
[1641487856057,91.55789,150.2,150.1,62.72097784]
[1641487857257,4.0,150.18,150.1,62.72097784]
[1641487857656,91.55789,150.2,150.1,62.72097784]
[1641487857857,91.55789,150.2,150.1,67.44197784]
[1641487858457,4.0,150.18,150.1,67.44197784]
[1641487858958,4.0,150.18,150.1,62.72097784]
[1641487860058,4.0,150.18,150.1,13.63776517]
[1641487862160,4.0,150.18,150.1,6.98529045]
[1641487862360,4.0,150.14,150.1,6.98529045]
[1641487862558,6.502,150.14,150.1,6.98529045]
[1641487864561,10.502,150.14,150.1,6.98529045]
[1641487864760,6.502,150.14,150.1,6.98529045]
[1641487865461,10.502,150.14,150.1,6.98529045]
[1641487865661,6.502,150.14,150.1,6.98529045]
[1641487866964,6.502,150.14,150.08,6.98529045]
[1641487867168,4.0,150.15,150.08,6.98529045]
[1641487868466,4.0,150.13,150.08,6.98529045]
[1641487868667,8.687,150.13,150.08,6.98529045]
[1641487869267,4.0,150.12,150.08,6.98529045]
[1641487869469,4.0,150.11,150.08,6.98529045]
[1641487869668,4.0,150.11,150.04,44.30031633]
[1641487869868,31.66479,150.12,150.04,44.30031633]
[1641487870069,4.0,150.11,150.04,37.64518522]
[1641487870271,4.0,150.1,150.04,37.64518522]
[1641487870969,4.0,150.09,150.04,37.64518522]
[1641487871172,4.0,150.08,150.04,8.522e-05]
[1641487871570,9.242,150.09,150.01,18.42439124]
[1641487872070,27.66479,150.06,150.01,18.42439124]
[1641487872270,5.242,150.09,150.01,18.42439124]
[1641487872470,9.242,150.09,150.01,18.42439124]
[1641487872671,5.242,150.09,150.01,18.42430602]
[1641487872880,5.242,150.09,150.03,14.11352077]
[1641487873073,18.11352077,150.1,150.03,14.11352077]
[1641487873274,4.0,150.09,150.03,14.11352077]
[1641487873474,14.11352077,150.1,150.03,14.11352077]
[1641487873672,4.0,150.1,150.04,14.11352077]
[1641487873875,4.0,150.09,150.04,14.11352077]
[1641487874075,27.66479,150.07,150.04,14.11352077]
[1641487874676,27.66479,150.07,150.06,14.11352077]
[1641487875480,27.66479,150.07,150.0,64.6141]
[1641487875678,27.66479,150.07,150.01,18.42430602]
[1641487876279,31.66479,150.07,150.01,18.42430602]
[1641487876478,4.0,150.03,150.0,3.76346751]
[1641487876680,8.371,150.03,150.0,3.76346751]
[1641487876880,4.0,150.01,149.97,18.4735137]
[1641487877079,4.0,149.98,149.97,18.4735137]
[1641487877278,4.641,149.98,149.97,18.4735137]
[1641487877678,4.641,149.98,149.96,3.76452007]
[1641487878279,27.66479,149.99,149.96,3.76452007]
[1641487878780,27.66479,150.01,149.96,10.60352007]
[1641487880182,27.66479,150.05,149.96,6.839]
[1641487880482,27.66479,150.05,149.95,6.65934139]
[1641487882782,27.66479,150.05,149.96,1.45422399]
[1641487885686,4.70482025,150.04,149.96,1.45422399]
[1641487886086,4.70482025,150.04,149.96,5.45422399]
[1641487886285,4.70482025,150.04,149.98,6.65801125]
[1641487886485,4.70482025,150.04,149.98,11.58301125]
[1641487886685,4.70482025,150.06,149.98,11.58301125]
[1641487887287,36.36961025,150.07,149.99,1.45422399]
[1641487887485,32.36961025,150.07,149.99,1.45422399]
[1641487887888,36.36961025,150.07,149.99,1.45422399]
[1641487888187,4.0,150.03,149.95,57.90971467]
[1641487888388,5.948,150.03,149.95,1.45422399]
[1641487888588,5.948,150.03,149.96,6.65867626]
[1641487889786,5.948,150.03,149.95,1.45422399]
[1641487889988,5.948,150.03,149.97,1.45422399]
[1641487890688,5.948,150.03,149.95,1.45422399]
[1641487892087,5.948,150.03,149.98,37.64408483]
[1641487892790,9.948,150.03,149.98,37.64408483]
[1641487893290,5.948,150.03,150.02,14.11655714]
[1641487893490,8.70482025,150.05,150.02,14.11655714]
[1641487893690,4.70482025,150.05,150.02,14.11655714]
[1641487894189,27.66479,150.04,150.02,14.11655714]
[1641487894389,34.81779,150.04,150.02,14.11655714]
[1641487894589,38.81779,150.04,150.02,14.11655714]
[1641487895691,38.81779,150.04,150.01,14.11655714]
[1641487895891,27.28874027,150.04,150.01,14.11655714]
[1641487896091,31.28874027,150.04,150.01,14.11655714]
[1641487896992,4.0,150.03,150.01,14.11655714]
[1641487897492,4.0,150.03,150.0,14.11655714]
[1641487897691,31.99440842,150.04,150.0,14.11655714]
[1641487897893,4.0,150.01,150.0,9.73535714]
[1641487898093,31.66479,150.01,150.0,5.714e-05]
[1641487898496,31.66479,150.01,150.0,1.45422399]
[1641487899694,27.66479,150.01,149.95,37.64408483]
[1641487900896,4.70566815,150.02,149.95,37.64408483]
[1641487901097,4.70566815,150.02,149.95,44.80908483]
[1641487902198,20.13574027,150.04,149.98,37.64408483]
[1641487902598,4.70566815,150.05,149.98,37.64408483]
[1641487902798,4.70566815,150.05,149.99,4.0]
[1641487903399,4.70566815,150.06,149.98,43.27108483]
[1641487903600,4.70566815,150.06,149.99,4.0]
[1641487904102,4.70566815,150.06,150.0,27.66479]
[1641487904304,4.70566815,150.08,150.01,37.64408483]
[1641487905203,4.70566815,150.08,150.01,44.55408483]
[1641487905602,66.78186815,150.1,150.03,37.64408483]
[1641487906503,62.0762,150.1,150.04,37.64408483]
[1641487910508,62.0762,150.1,150.08,4.68070626]
[1641487910709,4.0,150.11,150.08,4.68070626]
[1641487912411,4.0,150.11,150.07,4.68070626]
[1641487913213,4.0,150.08,150.03,37.64408483]
[1641487913414,4.70566815,150.1,150.03,37.64408483]
[1641487914113,27.66479,150.08,150.03,37.64408483]
[1641487915317,27.66479,150.08,150.04,4.0]
[1641487915516,72.53916815,150.1,150.04,4.0]
[1641487916316,72.53916815,150.1,150.05,1.45422399]
[1641487917219,67.8335,150.1,150.05,1.45422399]
[1641487919722,4.70566815,150.13,150.05,1.45422399]
[1641487919922,4.70566815,150.13,150.08,4.0]
[1641487920122,4.70566815,150.13,150.08,10.075]
[1641487920321,4.70566815,150.13,150.11,27.66479]
[1641487920922,4.70566815,150.13,150.09,27.66479]
[1641487921122,4.70566815,150.13,150.06,44.29855164]
[1641487921521,4.42,150.15,150.12,8.46889256]
[1641487921722,8.42,150.15,150.12,8.46889256]
[1641487921930,4.0,150.13,150.12,8.46889256]
[1641487922324,31.66479,150.13,150.12,8.46889256]
[1641487922823,36.37045815,150.13,150.07,1.45422399]
[1641487924124,4.0,150.1,150.06,8.46889256]
[1641487924325,27.66479,150.09,150.06,8.46889256]
[1641487924826,4.70566815,150.08,150.06,7.01466857]
[1641487925025,4.70566815,150.08,150.01,37.64408483]
[1641487925225,67.1689,150.07,150.01,37.64408483]
[1641487925826,67.1689,150.07,150.02,37.64408483]
[1641487926027,71.1689,150.07,150.02,37.64408483]
[1641487926227,27.66479,150.05,150.02,37.64408483]
[1641487926426,34.49279,150.05,150.02,37.64408483]
[1641487926627,38.49279,150.05,150.02,37.64408483]
[1641487926827,38.49279,150.05,149.99,46.11297739]
[1641487927227,4.0,150.04,149.99,46.11297739]
[1641487927631,38.49279,150.05,149.99,46.11297739]
[1641487928029,4.70566815,150.03,149.96,41.40889632]
[1641487929332,4.70566815,150.03,150.0,14.11712667]
[1641487929734,8.70566815,150.03,150.0,14.11712667]
[1641487930134,8.70566815,150.03,149.97,1.45422399]
[1641487930835,4.0,150.02,149.97,1.45422399]
[1641487931036,3.25448913,150.02,150.01,4.70622606]
[1641487931435,7.25448913,150.02,150.01,4.70622606]
[1641487931635,7.25448913,150.02,149.95,1.45422399]
[1641487931835,4.0,149.98,149.95,1.45422399]
[1641487932035,4.0,149.97,149.94,48.42356489]
[1641487932235,27.66479,149.95,149.94,48.42356489]
[1641487932437,33.11079,149.95,149.94,44.6587534]
[1641487933237,33.11079,149.95,149.93,11.41568229]
[1641487933238,33.11079,149.95,149.9,41.40889632]
[1641487934537,37.11079,149.95,149.9,41.40889632]
[1641487934939,33.11079,149.95,149.9,41.40889632]
[1641487935137,33.11079,149.95,149.9,37.64408483]
[1641487935337,37.11079,149.95,149.9,37.64408483]
[1641487935537,37.11079,149.95,149.92,37.64408483]
[1641487936437,37.11079,149.95,149.91,37.64408483]
[1641487937139,4.0,149.94,149.91,37.64408483]
[1641487937739,37.11079,149.95,149.91,37.64408483]
[1641487938140,37.11079,149.95,149.86,67.23497074]
[1641487938340,37.11079,149.95,149.87,3.76481149]
[1641487938541,4.0,149.94,149.87,3.76481149]
[1641487940445,31.66479,149.95,149.87,3.76481149]
[1641487940647,31.66479,149.95,149.91,37.64408483]
[1641487940845,31.66479,149.95,149.91,30.84408483]
[1641487941046,31.66479,149.95,149.91,29.78408483]
[1641487941245,4.0,149.94,149.91,23.24408483]
[1641487941445,4.0,149.94,149.87,3.76481149]
[1641487941947,31.66479,149.95,149.87,3.76481149]
[1641487942147,27.66479,149.95,149.87,3.76481149]
[1641487942347,94.64699,149.97,149.88,27.66479]
[1641487942749,66.9822,149.97,149.88,27.66479]
[1641487942949,66.9822,149.97,149.89,6.66200326]
[1641487943148,4.0,150.02,149.89,6.66200326]
[1641487943349,71.5788,150.01,149.89,69.23220326]
[1641487943549,71.5788,150.01,149.89,76.24687183]
[1641487944248,27.66479,150.0,149.92,27.66479]
[1641487944848,27.66479,150.0,149.92,34.32524025]
[1641487945251,27.66479,150.0,149.92,38.32524025]
[1641487945449,27.66479,150.02,149.92,34.32524025]
[1641487945649,27.66479,150.02,149.93,11.01466857]
[1641487946451,27.66479,150.05,149.97,27.66479]
[1641487947050,27.66479,150.07,149.97,27.66479]
[1641487947051,27.66479,150.07,149.97,38.69579]
[1641487947451,62.3116,150.08,149.98,11.01466857]
[1641487947653,62.3116,150.08,149.99,6.65734638]
[1641487948453,62.3116,150.08,150.02,27.66479]
[1641487948654,27.66479,150.1,149.99,6.65734638]
[1641487949254,93.83229,150.1,149.99,6.65734638]
[1641487949757,93.83229,150.1,149.98,22.42998582]
[1641487950156,93.83229,150.1,149.99,6.65734638]
[1641487950359,93.83229,150.1,150.02,27.66479]
[1641487951358,93.83229,150.1,150.03,7.01466857]
[1641487951757,97.83229,150.1,150.03,7.01466857]
[1641487952558,93.83229,150.1,150.03,7.01466857]
[1641487952758,97.83229,150.1,150.03,7.01466857]
[1641487952960,97.83229,150.1,149.99,6.65734638]
[1641487953158,102.63529,150.1,149.99,6.65734638]
[1641487953559,98.63529,150.1,149.99,6.65734638]
[1641487954158,102.63529,150.1,149.99,6.65734638]
[1641487955959,95.10705051,150.1,149.99,6.65734638]
[1641487958663,95.10705051,150.1,150.01,27.66479]
[1641487959564,95.10705051,150.1,150.02,7.01466857]
[1641487959765,91.10705051,150.1,150.02,7.01466857]
[1641487960165,95.10705051,150.1,150.02,7.01466857]
[1641487960466,95.10705051,150.1,150.04,14.11378427]
[1641487961268,14.11378427,150.09,150.02,14.11378427]
[1641487962368,14.11378427,150.08,150.01,14.11378427]
[1641487963268,4.0,150.09,149.98,130.6915]
[1641487963471,4.0,150.09,149.98,62.8281]
[1641487963670,90.30405051,150.1,149.98,62.8281]
[1641487963970,4.0,150.09,149.98,62.8281]
[1641487964170,4.0,150.09,149.98,73.0281]
[1641487964771,27.66479,150.07,149.98,73.0281]
[1641487964972,27.66479,150.07,149.98,10.2]
[1641487967273,4.0,150.14,150.0,4.0]
[1641487967474,65.9176,150.14,150.02,6.65623856]
[1641487968073,4.0,150.13,150.02,6.65623856]
[1641487968675,14.11378427,150.12,150.05,14.11378427]
[1641487969877,14.11378427,150.12,150.05,21.11707212]
[1641487970778,14.11378427,150.12,150.08,27.66479]
[1641487970977,14.11378427,150.12,150.08,32.19879]
[1641487971778,14.11378427,150.13,150.08,32.19879]
[1641487972178,14.11378427,150.13,150.08,27.66479]
[1641487972979,14.11378427,150.13,150.09,1.45027128]
[1641487973180,3.25349281,150.13,150.09,1.45027128]
[1641487974078,3.25349281,150.13,150.07,14.11378427]
[1641487975580,3.25349281,150.13,150.08,14.11378427]
[1641487978484,4.0,150.1,150.08,14.11378427]
[1641487978783,8.581,150.1,150.08,14.11378427]
[1641487978984,8.581,150.1,150.06,14.11378427]
[1641487979884,4.581,150.1,150.06,14.11378427]
[1641487980286,3.25349281,150.09,150.04,1.45027128]
[1641487980684,10.02749281,150.09,150.04,1.45027128]
[1641487980888,4.0,150.07,150.04,1.45027128]
[1641487981085,4.0,150.07,150.03,14.11378427]
[1641487981286,70.8165,150.09,150.0,37.64243769]
[1641487981287,4.0,150.05,150.0,37.64243769]
[1641487981485,10.851,150.05,150.0,37.64243769]
[1641487981687,4.0,150.03,150.0,37.64243769]
[1641487981887,4.0,150.04,149.95,56.45549068]
[1641487982086,4.0,150.04,149.95,37.64918275]
[1641487982287,6.851,150.05,149.95,37.64918275]
[1641487982587,10.66155947,150.07,149.96,6.65889795]
[1641487982588,4.0,150.07,149.96,6.65889795]
[1641487982791,31.66479,150.07,149.96,34.32368795]
[1641487982989,4.0,150.06,149.96,34.32368795]
[1641487983390,4.0,150.05,149.95,37.64918275]
[1641487983591,4.0,150.03,149.97,7.0015522]
[1641487984490,4.0,150.05,149.97,7.0015522]
[1641487984690,4.0,150.05,149.95,7.0015522]
[1641487984891,4.0,150.02,149.95,7.0015522]
[1641487985290,27.66479,150.04,149.95,7.0015522]
[1641487985492,31.66479,150.04,149.95,7.0015522]
[1641487985792,27.66479,150.04,149.95,7.0015522]
[1641487986093,27.66479,150.04,149.95,17.8715522]
[1641487986493,27.66479,150.07,149.95,17.8715522]
[1641487986693,27.66479,150.07,149.96,6.65867626]
[1641487986994,27.66479,150.07,149.97,27.66479]
[1641487987593,27.66479,150.07,149.98,7.0015522]
[1641487988194,4.0,150.05,149.98,7.0015522]
[1641487988393,4.0,150.04,149.98,7.0015522]
[1641487988995,31.66479,150.03,149.98,7.0015522]
[1641487989194,4.0,150.02,149.98,7.0015522]
[1641487989597,4.0,150.02,149.95,11.39825501]
[1641487989598,4.0,150.02,149.95,18.39980721]
[1641487990597,4.0,150.02,149.92,13.66200245]
[1641487991597,31.66479,150.03,149.92,13.66200245]
[1641487991998,27.66479,150.03,149.92,13.66200245]
[1641487992200,4.7006252,150.02,150.0,4.7006252]
[1641487992601,4.7006252,150.02,149.92,13.66200245]
[1641487993002,31.66479,150.03,149.94,27.66479]
[1641487993501,27.66479,150.03,149.94,27.66479]
[1641487993701,31.66479,150.03,149.94,27.66479]
[1641487993901,27.66479,150.03,149.94,27.66479]
[1641487994100,27.66479,150.03,149.95,7.0015522]
[1641487994301,31.66479,150.03,149.95,7.0015522]
[1641487994602,4.0,150.02,149.95,7.0015522]
[1641487996805,31.66479,150.03,149.95,7.0015522]
[1641487997608,27.66479,150.03,149.95,7.0015522]
[1641487997807,67.324,150.06,149.95,11.6075522]
[1641487998007,67.324,150.06,149.95,15.6075522]
[1641487998207,67.324,150.06,149.97,6.65845457]
[1641487999009,67.324,150.06,150.01,27.66479]
[1641487999209,27.66479,150.07,150.01,27.66479]
[1641487999408,27.66479,150.07,149.99,27.66479]
[1641488000010,27.66479,150.07,149.95,6.65934139]
[1641488000913,27.66479,150.07,149.98,27.66479]
[1641488001714,4.0,150.06,149.98,27.66479]
[1641488002114,4.0,150.06,149.99,6.99386142]
[1641488002514,27.66479,150.07,149.99,6.99386142]
[1641488003115,31.66479,150.07,149.99,6.99386142]
[1641488003714,4.0,150.06,149.99,6.99386142]
[1641488003914,31.66479,150.07,149.99,6.99386142]
[1641488005416,68.5157,150.1,149.99,6.99386142]
[1641488005616,64.5157,150.1,150.01,4.0]
[1641488005815,65.31237171,150.11,150.01,4.0]
[1641488006018,65.31237171,150.11,150.03,4.0]
[1641488006318,27.66479,150.11,150.03,9.806]
[1641488006916,27.66479,150.11,150.05,27.66479]
[1641488008829,27.66479,150.11,150.06,6.99386142]
[1641488010728,27.66479,150.11,150.06,10.99386142]
[1641488010927,37.64758171,150.17,150.07,4.0]
[1641488011130,37.64758171,150.17,150.07,6.762]
[1641488011428,44.3040418,150.18,150.07,6.762]
[1641488011629,37.64758171,150.18,150.07,10.762]
[1641488011829,37.64758171,150.18,150.09,6.65313862]
[1641488012431,68.7456,150.2,150.09,6.65313862]
[1641488012731,4.0,150.19,150.09,6.65313862]
[1641488012931,4.0,150.19,150.13,27.66479]
[1641488014534,64.7456,150.2,150.13,27.66479]
[1641488014733,64.7456,150.2,150.13,36.13079]
[1641488014933,27.66479,150.22,150.13,59.79558]
[1641488015834,31.66479,150.22,150.13,59.79558]
[1641488016135,27.66479,150.22,150.13,59.79558]
[1641488018238,13.95272722,150.21,150.14,20.94596672]
[1641488018439,18.45672722,150.21,150.14,20.94596672]
[1641488019241,13.95272722,150.2,150.13,69.28230722]
[1641488020241,16.3158426,150.21,150.13,69.28230722]
[1641488020840,4.504,150.21,150.13,69.28230722]
[1641488021041,18.60744799,150.21,150.14,20.94596021]
[1641488021841,4.504,150.21,150.14,13.95272722]
[1641488022041,17.35815831,150.2,150.14,1.44713999]
[1641488022841,4.675,150.2,150.14,1.44713999]
[1641488023042,4.0,150.19,150.14,22.39311045]
[1641488023342,4.0,150.17,150.14,22.39311045]
[1641488023642,4.0,150.19,150.14,22.39311045]
[1641488023842,4.0,150.19,150.14,13.95272722]
[1641488024044,14.10367865,150.17,150.1,13.95272722]
[1641488025042,3.25406656,150.18,150.11,27.66479]
[1641488025243,14.10810184,150.16,150.11,27.66479]
[1641488026342,14.10810184,150.18,150.12,1.44686478]
[1641488027442,14.10810184,150.17,150.11,27.66479]
[1641488028343,3.25406656,150.18,150.12,1.44696069]
[1641488029045,3.25406656,150.18,150.11,27.66479]
[1641488029245,14.10669228,150.17,150.11,27.66479]
[1641488029948,3.25406656,150.17,150.12,1.44693231]
[1641488030947,14.10658118,150.17,150.13,4.0]
[1641488031148,7.59858118,150.17,150.15,27.66479]
[1641488031747,3.25406656,150.2,150.15,27.66479]
[1641488031947,49.46354855,150.21,150.15,27.66479]
[1641488031948,15.0700334,150.21,150.16,1.44755079]
[1641488032948,3.25406656,150.21,150.15,27.66479]
[1641488033649,27.66479,150.22,150.16,1.44713398]
[1641488034451,3.25422323,150.21,150.15,27.66479]
[1641488035452,3.25422323,150.21,150.16,1.44717639]
[1641488036154,0.08,150.23,150.15,27.66479]
[1641488037860,3.23704073,150.22,150.15,27.66479]
[1641488038061,9.60104073,150.22,150.15,27.66479]
[1641488039062,3.23704073,150.21,150.15,27.66479]